Cogmind - Beta 15 @@@ ROGUE MODE // 2025.06.29 @ 20:53:52 Player: Not_Jesus8 Result: Destroyed by X-72 Disruptor with Arc Projector Performance ------------- Evolutions (4) 2000 Regions Visited (4) 800 Robots Destroyed (24) 120 Value Destroyed (961) 961 Prototype IDs (1) 20 Alien Tech Used (0) 0 Bonus (800) 800 TOTAL SCORE: 4701 Bonus ------- Registered with UFD 300 Met Optimus in HQ 500 Cogmind --------- Core Integrity 0/850 Matter 267/300 Energy 83/100 System Corruption 5% Temperature Cool (0) Movement Core (100) Ox1 Location -6/Factory Parts ------- > --- POWER (1) -------- (None) > --- PROPULSION (4) --- (None) > --- UTILITY (8) ------ (None) > --- WEAPON (2) ------- Companion Sword > --- INVENTORY (5) ---- Triangulator Force Field Overtuned Barrage Gun Overtuned Barrage Gun Power Sword Peak State ------------ > --- POWER ------------ Ion Engine > --- PROPULSION ------- Titanium Leg Overtuned Titanium Leg Overtuned Flexi-carbon Leg > --- UTILITY ---------- Scrap Suit Small Storage Unit Advanced Targeting Computer > --- WEAPON ----------- Power Sword Companion Sword > --- INVENTORY -------- Triangulator Improved Reaction Control System Force Field Heavy Assault Rifle Overtuned Barrage Gun Overtuned Barrage Gun Heavy Rocket Launcher DRS Beacon [Rating: 39] Favorites ----------- Power Ion Engine Engine Ion Engine Propulsion Titanium Leg Leg Titanium Leg Wheel Compact Wheel Flight Unit Cesium-ion Thruster Utility Small Storage Unit Device Scrap Suit Storage Small Storage Unit Processor Advanced Targeting Computer Weapon Heavy Assault Rifle Energy Gun Small Laser Energy Cannon Heavy Particle Cannon Ballistic Gun Heavy Assault Rifle Launcher Heavy Rocket Launcher Slashing Weapon Companion Sword Build | -11 -10 -10 -8 -6 ------- Run | Yrd Mat Sub Scr Fac Slots Evolved 8 | . . . . 8 Power . | . . . . . Propulsion 2 | . . . . 2 Utility 6 | . . . . 6 Weapon . | . . . . . Parts Attached 21 | 5 4 . 8 4 Power 1 | 1 . . . . Engine 1 | 1 . . . . Core . | . . . . . Reactor . | . . . . . Propulsion 8 | 1 2 . 4 1 Treads . | . . . . . Leg 6 | . 2 . 4 . Wheel 1 | 1 . . . . Hover . | . . . . . Flight 1 | . . . . 1 Utility 3 | 1 . . 1 1 Device 1 | . . . . 1 Storage 1 | 1 . . . . Processor 1 | . . . 1 . Hackware . | . . . . . Protection . | . . . . . Artifact . | . . . . . Weapon 9 | 2 2 . 3 2 Energy Gun 1 | 1 . . . . Energy Cannon . | . . . . . Ballistic Gun 5 | 1 2 . 2 . Ballistic Cannon . | . . . . . Launcher 1 | . . . . 1 Special Weapon . | . . . . . Impact Weapon . | . . . . . Slashing Weapon 2 | . . . 1 1 Piercing Weapon . | . . . . . Special Melee Weapon . | . . . . . Unidentified Prototypes 1 | . . . 1 . Parts Lost 7 | . . . . 7 Power 1 | . . . . 1 Propulsion 4 | . . . . 4 Utility 1 | . . . . 1 Weapon 1 | . . . . 1 Highest Loss Streak 6 | . . . . 6 To Critical Strikes . | . . . . . Average Backups 5 | . 1 2 6 6 Power . | . . . . . Propulsion . | . . . . . Utility 1 | . . 1 1 2 Weapon 3 | . . 1 4 3 Tool/Special . | . . . . . Unused Backups 11 | . . . 6 5 Power . | . . . . . Propulsion 1 | . . . 1 . Utility 6 | . . . 2 4 Weapon 4 | . . . 3 1 Tool/Special . | . . . . . Average Slot Usage (%) 84 | . 78 85 91 53 Engine 12 | . 14 14 14 5 Leg 25 | . 14 28 28 17 Storage 12 | . 14 14 14 6 Processor 9 | . . . 11 5 Ballistic Gun 15 | . 25 28 17 . Slashing Weapon 5 | . . . 5 9 Peak Build Rating 39 | 5 8 9 22 39 Average Rating 18 | 3 6 8 17 34 On Entrance 8 | . 5 8 9 20 Naked Turns . | . . . . . Heaviest Build 25 | 13 16 16 16 25 Greatest Support 59 | 16 20 20 42 59 Greatest Overweight (x) 4 | . 1 . 4 2 Average Overweight (x) . | . . . . . Largest Inventory Capacity 8 | 8 8 8 8 8 Average Capacity 7 | 6 8 8 8 7 Most Carried 8 | . 2 7 8 8 Average Carried 6 | . 1 2 7 7 Final Capacity 8 | 8 8 8 8 5 Final Carried 8 | . 2 7 8 5 Class Distribution -------------------- 100% | Mutant Dominant Class ---------------- Mutant | -10/Materials Mutant | -10/Subcaves Mutant | -8/Scraptown Mutant | -6/Factory Resources | -11 -10 -10 -8 -6 ----------- Run | Yrd Mat Sub Scr Fac Matter Collected 471 | 240 68 . 94 69 Remotely . | . . . . . Salvage Created 739 | . 35 41 . 663 Parts 40 | . 4 4 . 32 Haulers Intercepted 1 | . . . . 1 Recyclers Shooed . | . . . . . Parts Field Recycled . | . . . . . Retrieved Matter . | . . . . . Parts Self-Destructed 7 | . . 7 . . Prevented . | . . . . . Kills | -11 -10 -10 -8 -6 ------- Run | Yrd Mat Sub Scr Fac Combat Hostiles Destroyed 20 | . . 1 . 19 Melee 9 | . . . . 9 Guns 1 | . . 1 . . AOE 10 | . . . . 10 Classes Destroyed 10 | . 2 1 . 7 Builder 1 | . . . . 1 Tunneler 1 | . 1 . . . Hauler 1 | . . . . 1 Watcher 1 | . 1 . . . Swarmer 7 | . . . . 7 Grunt 6 | . . . . 6 Protector 1 | . . . . 1 Specialist 3 | . . . . 3 Programmer 2 | . . . . 2 Subdweller 1 | . . 1 . . Best Kill Streak 9 | . 1 1 . 9 Combat Bots Only 8 | . . 1 . 8 Max Kills in Single Turn 8 | . 1 1 . 8 Gunslinging . | . . . . . Exploded 7 | . . . . 7 Melee 1 | . . . . 1 Uniques/NPCs Destroyed . | . . . . . Combat | -11 -10 -10 -8 -6 -------- Run | Yrd Mat Sub Scr Fac Hostile Shots Fired 130 | . . 2 . 128 Missed 36 | . . 1 . 35 Hits 94 | . . 1 . 93 Melee 2 | . . . . 2 Projectile 92 | . . 1 . 91 Critical Strikes 4 | . . . . 4 Damage Taken 2031 | . 18 10 . 2003 Core 862 | . . 10 . 852 Absorbed by Shields . | . . . . . Regen/Repaired (Parts) 15 | . . . . 15 Core Remaining (%) 98 | 100 . . 96 . Volleys Fired 6 | . 3 1 . 2 Largest 2 | . 2 2 . 1 Hottest 46 | . 46 46 . 39 Shots Fired 10 | . 6 2 . 2 Gun 8 | . 6 2 . . Cannon . | . . . . . Launcher 2 | . . . . 2 Special . | . . . . . Kinetic 8 | . 6 2 . . Thermal . | . . . . . Explosive 2 | . . . . 2 Electromagnetic . | . . . . . Robot Hit Streak 3 | . 2 2 . 3 Robot Miss Streak 1 | . 1 . . . Penetration Max . | . . . . . Secondary Targets . | . . . . . Shots Hit Robots 47 | . 3 1 . 43 Core Hits 33 | . 2 1 . 30 Critical Kills . | . . . . . Critical Parts Destroyed . | . . . . . Critical Strikes 1 | . . . . 1 Sever 1 | . . . . 1 Melee Attacks 61 | . . . . 61 Impact . | . . . . . Slashing 61 | . . . . 61 Piercing . | . . . . . Sneak Attacks 1 | . . . . 1 Combat Hostiles . | . . . . . Follow-up Attacks 5 | . . . . 5 Damage Inflicted 4102 | . 42 18 . 4042 Guns 60 | . 42 18 . . Cannons . | . . . . . Explosions 2252 | . . . . 2252 Melee 1790 | . . . . 1790 Ramming . | . . . . . Kinetic 60 | . 42 18 . . Thermal 1533 | . . . . 1533 Explosive 719 | . . . . 719 Electromagnetic . | . . . . . Impact . | . . . . . Slashing 1790 | . . . . 1790 Piercing . | . . . . . Highest Corruption 4 | . . . . 4 Average Corruption 3 | . . . . 3 Corruption Purged . | . . . . . Corruption Blocked . | . . . . . Effects 1 | . . . . 1 Matter Fused 1 | . . . . 1 Overload Shots . | . . . . . Overflow Damage 449 | . . . . 449 Projectiles . | . . . . . Explosions 298 | . . . . 298 Melee 151 | . . . . 151 Knockbacks . | . . . . . Impact . | . . . . . Kinetic . | . . . . . Secondary . | . . . . . Self-Inflicted Damage 282 | . . . . 282 Shots 4 | . . . . 4 Rammed . | . . . . . Targets Rammed . | . . . . . Kicked . | . . . . . Crushed . | . . . . . Highest Temperature 6 | . . . . 6 Average Temperature 5 | . . . . 5 Received Heat Transfer 381 | . 12 . . 369 Siege Activations . | . . . . . Martial Activations . | . . . . . Shielding Activations . | . . . . . Robots Disrupted . | . . . . . Combat Hostiles . | . . . . . Robots Corrupted . | . . . . . Combat Hostiles . | . . . . . Parts Fried . | . . . . . Impact Corruptions . | . . . . . Robots Melted . | . . . . . Combat Hostiles . | . . . . . Parts Melted . | . . . . . Heat Transferred 875 | . . . . 875 Parts Sabotaged 1 | . . . . 1 Parts Stolen . | . . . . . Parts Stripped . | . . . . . Power Chain Reactions . | . . . . . Alert | -11 -10 -10 -8 -6 ------- Run | Yrd Mat Sub Scr Fac Maximum Alert Level 1 | . . . . 1 Low Security (%) 86 | 100 100 . . 82 Level 1 13 | . . . . 17 Level 2 . | . . . . . Level 3 . | . . . . . Level 4 . | . . . . . Level 5 . | . . . . . High Security . | . . . . . Max Security . | . . . . . Peak Influence 360 | . 12 . . 360 Initial . | . . . . . Average 48 | . . . . 64 Influence Increases 619 | . 24 30 . 565 Destroy 0b10 Robot/C 360 | . . . . 360 Destroy 0b10 Robot/NC 25 | . 10 . . 15 Destroy Leader 54 | . 2 . . 52 Successful Hack 41 | . 12 . . 29 Disable Machine 45 | . . . . 45 Destroy Structure 34 | . . . . 34 Partial Spotted 15 | . . . . 15 Lose Combat Pursuer 45 | . . 30 . 15 Influence Decreases 277 | . 24 30 . 223 Time Decay 207 | . 24 30 . 153 Lost Part 70 | . . . . 70 Squads Dispatched 5 | . . . . 5 Investigation 1 | . . . . 1 Extermination 1 | . . . . 1 Reinforcement 2 | . . . . 2 Assault . | . . . . . Garrison 1 | . . . . 1 Intercept . | . . . . . Searches Triggered . | . . . . . Construction Impeded . | . . . . . Haulers Reinforced . | . . . . . Active Scanning Responses . | . . . . . Cargo Convoy Interrupts 1 | . . . . 1 Stealth | -11 -10 -10 -8 -6 --------- Run | Yrd Mat Sub Scr Fac Distress Signals 3 | . 2 . . 1 Communications Jammed . | . . . . . Distress Signals . | . . . . . Times Spotted 48 | . 9 5 . 34 Peak Tracking Total 11 | . 5 4 . 11 Tactical Retreats 2 | . . 1 . 1 Traps | -11 -10 -10 -8 -6 ------- Run | Yrd Mat Sub Scr Fac Traps Triggered 1 | . . . . 1 Indirectly . | . . . . . Trap Hack Attempts . | . . . . . Triggered . | . . . . . Disarmed . | . . . . . Reprogrammed . | . . . . . Reused . | . . . . . Traps Extracted . | . . . . . Installed . | . . . . . Triggered . | . . . . . Machines | -11 -10 -10 -8 -6 ---------- Run | Yrd Mat Sub Scr Fac Machines Disabled 3 | . . . . 3 Max in Single Turn 2 | . . . . 2 Garrison Access 1 | . . . . 1 Machines Repaired . | . . . . . Machines Dismantled . | . . . . . Machines Sabotaged . | . . . . . Overloaded Fab Kills . | . . . . . Hacking | -11 -10 -10 -8 -6 --------- Run | Yrd Mat Sub Scr Fac Machines Accessed 18 | . 1 . 7 10 Terminals 7 | . 1 . . 6 Fabricators 1 | . . . . 1 Repair Stations 1 | . . . . 1 Recycling Units 1 | . . . . 1 Scanalyzers . | . . . . . Garrison Access 1 | . . . . 1 Total Hacks 61 | . 2 . 44 15 Successful 51 | . 1 . 44 6 Failed 10 | . 1 . . 9 Catastrophic 1 | . . . . 1 Database Lockouts . | . . . . . Manual 12 | . 2 . . 10 Terminals 11 | . 2 . . 9 Fabricators 2 | . . . . 2 Repair Stations 2 | . . . . 2 Recycling Units 1 | . . . . 1 Scanalyzers . | . . . . . Garrison Access 1 | . . . . 1 Terminal Hacks 44 | . . . 44 . Record 38 | . . . 38 . Robot Analysis 5 | . . . 5 . Open Door 1 | . . . 1 . Fabricator Hacks 2 | . . . . 2 Network Status 1 | . . . . 1 Build 1 | . . . . 1 Repair Station Hacks 1 | . . . . 1 Scan Component 1 | . . . . 1 Recycling Unit Hacks . | . . . . . Scanalyzer . | . . . . . Garrison Access Hacks 1 | . . . . 1 Seal Access 1 | . . . . 1 Unauthorized Hacks 3 | . 1 . . 2 Terminals 2 | . 1 . . 1 Botnet 2 | . 1 . . 1 Fabricators . | . . . . . Repair Stations . | . . . . . Recycling Units 1 | . . . . 1 Recyclers 1 | . . . . 1 Scanalyzers . | . . . . . Garrison Access . | . . . . . Data Cores Recovered 1 | . 1 . . . Used 1 | . 1 . . . Hacking Detections 8 | . . . . 8 Full Trace Events 1 | . . . . 1 Feedback Events . | . . . . . Feedback Blocked . | . . . . . Robot Schematics Acquired . | . . . . . Robots Built . | . . . . . Authchips . | . . . . . Time . | . . . . . Total Robot Build Rating . | . . . . . Part Schematics Acquired . | . . . . . Parts Built 2 | . . . . 2 Authchips . | . . . . . Time 95 | . . . . 95 Total Part Build Rating 10 | . . . . 10 Parts Repaired . | . . . . . Time . | . . . . . Parts Recycled . | . . . . . Recycled Matter . | . . . . . Retrieved Matter . | . . . . . Retrieved Components . | . . . . . Parts Scanalyzed . | . . . . . Part Schematics Acquired . | . . . . . Parts Damaged . | . . . . . Bothacking | -11 -10 -10 -8 -6 ------------ Run | Yrd Mat Sub Scr Fac Used RIF Installer . | . . . . . Robots Hacked . | . . . . . Non-combat . | . . . . . Combat . | . . . . . Robot Hacks Applied . | . . . . . Relay Couplers Released . | . . . . . Fabnet Peak Effective % . | . . . . . Robots Rewired . | . . . . . Allies Hacked . | . . . . . Hacks Repelled . | . . . . . Allies | -11 -10 -10 -8 -6 -------- Run | Yrd Mat Sub Scr Fac Total Allies . | . . . . . Largest Group . | . . . . . Highest-Rated Group . | . . . . . Highest-Rated Ally . | . . . . . Total Orders . | . . . . . Ally Attacks . | . . . . . Total Damage . | . . . . . Kills . | . . . . . Allies Corrupted . | . . . . . Allies Melted . | . . . . . Intel | -11 -10 -10 -8 -6 ------- Run | Yrd Mat Sub Scr Fac Active Infowar (turns) . | . . . . . Robot Analysis Total 5 | . . . 5 . Derelict Logs Recovered 5 | . . 2 3 . Drone Launches . | . . . . . Drone Recoveries . | . . . . . Exploration | -11 -10 -10 -8 -6 ------------- Run | Yrd Mat Sub Scr Fac Turns Passed 4195 | 60 185 273 2969 708 Spaces Moved 3093 | 57 107 214 2277 438 Core 31 | 7 . . 22 2 Treads . | . . . . . Legs 2944 | . 39 214 2255 436 Wheels 118 | 50 68 . . . Hover . | . . . . . Flight . | . . . . . Fastest Speed 50 | 50 100 120 90 90 Average Speed 121 | 93 107 120 127 101 Slowest Speed 250 | 100 190 120 250 150 Overloaded Moves . | . . . . . Propulsion Burnouts . | . . . . . Robots Hopped . | . . . . . Potential Cave-ins . | . . . . . Cave-ins Triggered 1 | . . . . 1 Exploration Rate (%) 31 | 4 32 17 91 14 Regions Visited 4 Branch Regions 2 Pre-discovered Areas 3 | . . . 3 . Known Exits Taken . | . . . . . Unknown Exits Taken 4 | 1 1 1 1 . Scrap Searched 9 | . . . 9 . Spaces Dug 10 | . . . . 10 Terrain Destroyed 38 | . . . . 38 Melee 10 | . . . . 10 Projectile . | . . . . . AOE 28 | . . . . 28 Terrain Rammed . | . . . . . Walls Destroyed . | . . . . . Machines Disabled . | . . . . . Actions | -11 -10 -10 -8 -6 --------- Run | Yrd Mat Sub Scr Fac Total 3424 | 61 169 228 2346 620 Wait 198 | . 52 10 30 106 Move 3089 | 56 106 213 2276 438 Hop . | . . . . . Pick Up 22 | . 2 4 10 6 Fast Attach 14 | 5 3 . 4 2 Attach 3 | . . . 1 2 Detach 2 | . . . 2 . Swap 11 | . 1 . 7 3 Drop 23 | . 2 . 15 6 Fire 6 | . 3 1 . 2 Melee 55 | . . . . 55 Ram . | . . . . . Kick . | . . . . . Crush . | . . . . . Escape Stasis . | . . . . . Rewire 1 | . . . 1 . Trap . | . . . . . Miscellaneous . | . . . . . Route ------- -11/Scrapyard -10/Materials -10/Subcaves -8/Scraptown (discovered 2 exits: *Fac x2) -6/Factory History --------- Turn | Location | Event 3 | -11/Scrapyard | Discovered new exit (range 16) 61 | -11/Scrapyard | Entered Materials 62 | -10/Materials | Met a group of wandering Federalists 177 | -10/Materials | Lost 4 allies 243 | -10/Materials | Discovered new exit (range 3) 246 | -10/Materials | Entered Subcaves 247 | -10/Subcaves | Continued accompanying wandering Federalists (2) 247 | -10/Subcaves | Approached by a straggling Scientist 299 | -10/Subcaves | Learned 4 Materials zone layouts 300 | -10/Subcaves | Build established: Mutant 519 | -10/Subcaves | Entered Scraptown 896 | -8/Scraptown | Scanned Subdweller tech in exchange for log data 899 | -8/Scraptown | Learned location of 1 exit from Research 900 | -8/Scraptown | Learned location of Quarantine (-3) 901 | -8/Scraptown | Learned 12 Research zone layouts 944 | -8/Scraptown | Visited Bundlers 1043 | -8/Scraptown | Visited IN-MT5's Study 1080 | -8/Scraptown | Visited Spacefarers 1243 | -8/Scraptown | Visited Assassins FH 1323 | -8/Scraptown | Visited CPS Storage 1574 | -8/Scraptown | Visited Cyclists 1624 | -8/Scraptown | Visited UFD Registry 1624 | -8/Scraptown | Registered with UFD as "Spikesplitter" 1661 | -8/Scraptown | Visited Analyses Database 1753 | -8/Scraptown | Entered Cyclist Reading Room 1758 | -8/Scraptown | Learned location of Zion (-7) 1838 | -8/Scraptown | Discovered new exit (range 11) 1870 | -8/Scraptown | Guru changed UFD alias to "Waverunner" 2025 | -8/Scraptown | Visited Cartography Club 2079 | -8/Scraptown | Visited Scrap Suit Storage 2089 | -8/Scraptown | Found Scrap Suit 2138 | -8/Scraptown | Visited Scrapoid Research Area 2299 | -8/Scraptown | Visited Modified Component R&D 2355 | -8/Scraptown | Visited Sword Containment 2395 | -8/Scraptown | Visited Derelict Rescue Squad 2403 | -8/Scraptown | Found DRS Beacon 2460 | -8/Scraptown | Visited Chapter 10 2517 | -8/Scraptown | Visited Botcube Research 2828 | -8/Scraptown | Delivered Scrap Shield to a Scientist 3404 | -8/Scraptown | Met Optimus 3404 | -8/Scraptown | Accepted into 0bPrime 3481 | -8/Scraptown | Discovered new exit (range 5) 3486 | -8/Scraptown | Civil war broke out across Scraptown 3488 | -8/Scraptown | Entered Factory 3488 | -6/Factory | Evolved 8 slots: Propulsion x2, Utility x6 3847 | -6/Factory | Fabricated Power Sword (x2) 4001 | -6/Factory | Garrison activated, responded to threat 4072 | -6/Factory | Destroyed 7 combat bots 4185 | -6/Factory | Cargo convoy interrupted 4186 | -6/Factory | Core integrity fell below 50% 4191 | -6/Factory | Crushed by falling debris 4191 | -6/Factory | Core integrity fell below 20% 4196 | -6/Factory | Destroyed by X-72 Disruptor with Arc Projector Last Messages --------------- E-15 Imp unfolds itself. Slug penetrates Terminal. Slug penetrates Wall. Adv. Targeting Computer blown off. E-15 Imp destroyed. K-01 Serf collects debris. Acquired Cesium-ion Thruster. Slug penetrates Wall. Cesium-ion Thruster destroyed. Dropped Sml. Storage Unit. The unstable cave ceiling collapses. Crushed by falling debris. Prototype Ballistic Cannon crushed. K-01 Serf collects debris. Companion Sword: "Good luck to us." Penetrated by Slug. K-01 Serf collects debris. Slug penetrates I-36 Angel. I-36 Angel destroyed. Penetrated by Slug. Map ----- +----------------------------------------------------+ | ??????????????????????????????????????????????? | | ??????????????????????????????????????????????? | | ??????????????????????????????????????????????? | | ??????????????????????????????????????????????? | | ??????????????????????????????????????????????? | | ??????????????????????????????????????????????? | | ??????????????????????????????????????????????? | | ??????????????????????????????????????????????? | | ??????????????????????????????????????????????? | | ??????????????????????????????????????????????? | | ??????????????????????????????????????????????? | | ??????????????????????????????????????????????? | | ??????????????????????????????????????????????? | | ??????????????????????????????????????????????? | | ??????????????????????????????????????????????? | | ????????? ???????????????????????????????????? | | ???????? ??????????????????????????????????? | | ???????? ?????????????????????????????????? | | ???????# ###############??????????????????? | | ???????# #??????????????????? | | ???????+ %= #??????????????????? | | ???????# #??????????????????? | | ???????# #??????????????????? | | ????????? #??????????????????? | | ????????######;= !!! #??????????????????? | | ????????# g % /!!@ #??????????????????? | | ????????# x#hx #??????????????????? | | ????????# %%%=x] +??????????????????? | | ????????# !!=%!!* #??????????????????? | | ????????# k %= !==!! #??????????????????? | | ????????# !]!][ #??????????????????? | | ????????# "" ;[ #??????????????????? | | ????????# "" ; #??????????????????? | | ????????# "T ; #??????????????????? | | ????????# "" # #??????????????????? | | ????????# "" + #??????????????????? | | ????????# # #??????????????????? | | ????????##+########### #??????????????????? | | ?????????# #?????????? #??????????????????? | | ???????### ########### #??????????????????? | | ???????# ??????????????????? | | ???###?# ??????????????????? | | ####"### ????????????????????? | | # " ?????????????????????? | | # # ?????????????????????? | | # """ # ###########??????????????????????? | | # """ # #? #??????????????????????????? | | # """ # # #??????????????????????????? | | # #^ ^# #??????????????????????????? | | #" """ + ^+ #??????????????????????????? | +----------------------------------------------------+ Best States ------------- Heat Dissipation 37 Energy Generation 10 Energy Capacity 250 Matter Stores 300 Matter Capacity 300 Sight Range 16 Terrain Scan Density 10 Evasion (%) 57 Targeting Accuracy 8 Item Schematics ----------------- None Robot Schematics ------------------ None Fabricated ------------ Power Sword | x2 | -6/Factory | Preloaded Repaired ---------- Nothing Alien Tech Used ----------------- None Achievements -------------- Let's See Who's Tougher Quick And Dirty Challenges ------------ None Game ------ Seed ScanTacticalBuckler Manual? 0 Play Time 00:36:10 Cumulative 6.3 hours Start 2025.06.29 @ 20:17:05 End 2025.06.29 @ 20:53:52 Sessions 1 Manual Loads 0 Difficulty Rogue Special Mode None Game No. 7 Rogue 7 Adventurer 0 Explorer 0 Win Type - Total 0 Types 0/0/0/0/0/0/0/0/0/0 Lore% 22 Gallery% 13 Achievement% 19 Wizard Run 0 Options --------- Layout 1 ASCII 0 Keyboard 1 Movement Arrows Keybinds 0 Fullscreen 1 Font 16/SmallcapsGlow Map View 50x54 Zoom Use 0% Tactical HUD 0 Map Filters NONE Filters NONE Steam 1 RUN: c1e3b9b9-03c5-4470-a946-21cd39030f75